[Event "The Schackveckan 2023: Chessweek Elo-tournaments Group 2"]
[Site "Göteborgs schackcentrum, Vegagatan 20, Gothenburg, Sweden"]
[Date "2023.08.08"]
[Round "4.6"]
[White "Madevan Vaishnavi, Yaashvan"]
[Black "Brattgjerd, August Minh"]
[Result "0-1"]
[TimeControl "90 minutes for 40 moves + 30 minutes for the rest of the game + 30 seconds per move from move one."]
[WhiteFideId "1772180"]
[BlackFideId "1550446"]
[WhiteElo "1425"]
[BlackElo "1495"]

1. e4 {[%clk 01:30:59]} {[%emt 00:00:02]} e6 {[%clk 01:20:25]} {[%emt
00:10:35]} 2. d4 {[%clk 01:29:09]} {[%emt 00:02:19]} d5 {[%clk 01:20:41]}
{[%emt 00:00:15]} 3. exd5 {[%clk 01:29:32]} {[%emt 00:00:07]} exd5 {[%clk
01:21:06]} {[%emt 00:00:05]} 4. Nf3 {[%clk 01:29:56]} {[%emt 00:00:05]} Bd6
{[%clk 01:20:57]} {[%emt 00:00:39]} 5. Bd3 {[%clk 01:30:14]} {[%emt 00:00:12]}
Ne7 {[%clk 01:21:04]} {[%emt 00:00:23]} 6. h3 {[%clk 01:26:47]} {[%emt
00:03:57]} O-O {[%clk 01:19:58]} {[%emt 00:01:36]} 7. O-O {[%clk 01:26:59]}
{[%emt 00:00:18]} Bf5 {[%clk 01:20:19]} {[%emt 00:00:08]} 8. Nc3 {[%clk
01:26:46]} {[%emt 00:00:44]} c6 {[%clk 01:20:25]} {[%emt 00:00:24]} 9. Bxf5
{[%clk 01:26:12]} {[%emt 00:01:04]} Nxf5 {[%clk 01:20:39]} {[%emt 00:00:16]} 10.
Qd3 {[%clk 01:25:44]} {[%emt 00:00:58]} Qd7 {[%clk 01:19:52]} {[%emt 00:01:16]}
11. Ne5 {[%clk 01:19:58]} {[%emt 00:06:17]} Bxe5 {[%clk 01:19:12]} {[%emt
00:01:10]} 12. dxe5 {[%clk 01:20:11]} {[%emt 00:00:17]} Na6 {[%clk 01:19:02]}
{[%emt 00:00:39]} 13. a3 {[%clk 01:16:10]} {[%emt 00:04:33]} Rae8 {[%clk
01:15:06]} {[%emt 00:04:25]} 14. Bf4 {[%clk 01:13:32]} {[%emt 00:03:09]} Nc5
{[%clk 01:13:57]} {[%emt 00:01:38]} 15. Qd2 {[%clk 01:06:08]} {[%emt 00:07:53]}
f6 {[%clk 01:07:49]} {[%emt 00:06:39]} 16. Rfe1 {[%clk 00:59:08]} {[%emt
00:07:31]} Ne6 {[%clk 01:04:10]} {[%emt 00:04:05]} 17. Bh2 {[%clk 00:52:27]}
{[%emt 00:07:14]} Qf7 {[%clk 01:00:30]} {[%emt 00:04:09]} 18. f4 {[%clk
00:47:44]} {[%emt 00:05:14]} Qg6 {[%clk 00:58:24]} {[%emt 00:02:34]} 19. Rac1
{[%clk 00:32:56]} {[%emt 00:15:20]} Ned4 {[%clk 00:41:39]} {[%emt 00:17:14]} 20.
Kh1 {[%clk 00:29:54]} {[%emt 00:03:33]} fxe5 {[%clk 00:41:13]} {[%emt
00:00:56]} 21. Rxe5 {[%clk 00:29:33]} {[%emt 00:00:51]} Rxe5 {[%clk 00:40:30]}
{[%emt 00:01:13]} 22. fxe5 {[%clk 00:29:56]} {[%emt 00:00:08]} Ne6 {[%clk
00:39:28]} {[%emt 00:01:31]} 23. Ne2 {[%clk 00:27:42]} {[%emt 00:02:45]} Ng5
{[%clk 00:36:43]} {[%emt 00:03:13]} 24. Nf4 {[%clk 00:23:28]} {[%emt 00:04:45]}
Qe8 {[%clk 00:36:18]} {[%emt 00:00:53]} 25. g4 {[%clk 00:14:53]} {[%emt
00:09:07]} Ne4 {[%clk 00:33:04]} {[%emt 00:03:43]} 26. Qe1 {[%clk 00:14:10]}
{[%emt 00:01:14]} Nd4 {[%clk 00:30:57]} {[%emt 00:02:37]} 27. Qe3 {[%clk
00:11:56]} {[%emt 00:02:45]} Ne6 {[%clk 00:27:08]} {[%emt 00:04:17]} 28. Nxe6
{[%clk 00:10:05]} {[%emt 00:02:23]} Qxe6 {[%clk 00:27:06]} {[%emt 00:00:31]} 29.
Qxa7 {[%clk 00:10:17]} {[%emt 00:00:18]} Qh6 {[%clk 00:26:40]} {[%emt
00:00:53]} 30. Re1 {[%clk 00:09:27]} {[%emt 00:01:22]} Qxh3 {[%clk 00:26:20]}
{[%emt 00:00:50]} 31. Qe3 {[%clk 00:08:02]} {[%emt 00:01:56]} Rf3 {[%clk
00:15:04]} {[%emt 00:11:46]} 32. Qxf3 {[%clk 00:01:19]} {[%emt 00:07:13]} Qxf3+
{[%clk 00:15:25]} {[%emt 00:00:09]} 33. Kg1 {[%clk 00:01:45]} {[%emt 00:00:05]}
Qf2+ {[%clk 00:15:40]} {[%emt 00:00:14]} 34. Kh1 {[%clk 00:02:06]} {[%emt
00:00:08]} Qxe1+ {[%clk 00:16:02]} {[%emt 00:00:08]} 35. Bg1 {[%clk 00:02:25]}
{[%emt 00:00:12]} Qf1 {[%clk 00:16:07]} {[%emt 00:00:25]} 36. e6 {[%clk
00:02:44]} {[%emt 00:00:11]} Nf2+ {[%clk 00:16:28]} {[%emt 00:00:09]} 37. Kh2
{[%clk 00:03:07]} {[%emt 00:00:07]} Qh3# {[%clk 00:16:11]} {[%emt 00:00:10]}
0-1

[Event "The Schackveckan 2023: Chessweek Elo-tournaments Group 2"]
[Site "Göteborgs schackcentrum, Vegagatan 20, Gothenburg, Sweden"]
[Date "2023.08.09"]
[Round "5.2"]
[White "Green, David"]
[Black "Lindholm, Marcus"]
[Result "0-1"]
[TimeControl "90 minutes for 40 moves + 30 minutes for the rest of the game + 30 seconds per move from move one."]
[WhiteFideId "1769332"]
[BlackFideId "1743473"]
[WhiteElo "1634"]
[BlackElo "1708"]

1. e4 {[%clk 01:05:56]} {[%emt 00:00:04]} c5 {[%clk 01:05:54]} {[%emt
00:00:06]} 2. Nf3 {[%clk 01:06:23]} {[%emt 00:00:03]} Nc6 {[%clk 01:06:19]}
{[%emt 00:00:05]} 3. d4 {[%clk 01:06:51]} {[%emt 00:00:02]} cxd4 {[%clk
01:06:44]} {[%emt 00:00:06]} 4. Nxd4 {[%clk 01:07:17]} {[%emt 00:00:04]} Nf6
{[%clk 01:07:08]} {[%emt 00:00:06]} 5. Nc3 {[%clk 01:07:36]} {[%emt 00:00:11]}
e5 {[%clk 01:07:33]} {[%emt 00:00:05]} 6. Ndb5 {[%clk 01:08:00]} {[%emt
00:00:06]} d6 {[%clk 01:07:56]} {[%emt 00:00:06]} 7. Nd5 {[%clk 01:08:19]}
{[%emt 00:00:11]} Nxd5 {[%clk 01:08:20]} {[%emt 00:00:07]} 8. exd5 {[%clk
01:08:47]} {[%emt 00:00:02]} Nb8 {[%emt 00:00:21]} 9. c4 {[%clk 01:09:05]} Be7
{[%clk 01:09:04]} {[%emt 00:00:06]} 10. c5 {[%clk 01:08:39]} {[%emt 00:00:57]}
a6 {[%clk 01:08:42]} {[%emt 00:00:52]} 11. cxd6 {[%clk 01:07:54]} {[%emt
00:01:15]} Bxd6 {[%clk 01:08:55]} {[%emt 00:00:17]} 12. Nxd6+ {[%clk 01:07:49]}
{[%emt 00:00:35]} Qxd6 {[%clk 01:09:17]} {[%emt 00:00:08]} 13. Qc2 {[%clk
00:59:04]} {[%emt 00:09:14]} O-O {[%clk 01:03:20]} {[%emt 00:06:27]} 14. Bc4
{[%clk 00:56:47]} {[%emt 00:02:47]} b5 {[%clk 01:01:19]} {[%emt 00:02:31]} 15.
Bb3 {[%clk 00:56:46]} {[%emt 00:00:31]} Bb7 {[%clk 00:59:28]} {[%emt 00:02:22]}
16. Be3 {[%clk 00:52:59]} {[%emt 00:04:16]} Nd7 {[%clk 00:52:10]} {[%emt
00:07:48]} 17. Rd1 {[%clk 00:44:31]} {[%emt 00:08:59]} f5 {[%clk 00:47:43]}
{[%emt 00:04:56]} 18. O-O {[%clk 00:34:04]} {[%emt 00:10:56]} f4 {[%clk
00:46:53]} {[%emt 00:01:22]} 19. Bc1 {[%clk 00:34:10]} {[%emt 00:00:24]} Nc5
{[%clk 00:45:50]} {[%emt 00:01:33]} 20. Rfe1 {[%clk 00:26:06]} {[%emt
00:08:34]} Rad8 {[%clk 00:41:55]} {[%emt 00:04:24]} 21. Bd2 {[%clk 00:20:11]}
{[%emt 00:06:25]} Nxb3 {[%clk 00:38:50]} {[%emt 00:03:35]} 22. Qxb3 {[%clk
00:19:34]} {[%emt 00:01:07]} Qxd5 {[%clk 00:37:59]} {[%emt 00:01:22]} 23. Bc3
{[%clk 00:18:15]} {[%emt 00:01:48]} Qxb3 {[%clk 00:33:22]} {[%emt 00:05:07]} 24.
axb3 {[%clk 00:18:22]} {[%emt 00:00:24]} e4 {[%clk 00:32:30]} {[%emt 00:01:21]}
25. Be5 {[%clk 00:15:47]} {[%emt 00:03:05]} Rd5 {[%clk 00:27:37]} {[%emt
00:05:23]} 26. Rxd5 {[%clk 00:15:35]} {[%emt 00:00:43]} Bxd5 {[%clk 00:28:00]}
{[%emt 00:00:06]} 27. b4 {[%clk 00:13:22]} {[%emt 00:02:44]} g5 {[%clk
00:22:52]} {[%emt 00:05:37]} 28. Bd4 {[%clk 00:09:09]} {[%emt 00:04:41]} Re8
{[%clk 00:19:53]} {[%emt 00:03:31]} 29. g3 {[%clk 00:07:35]} {[%emt 00:02:05]}
Kf7 {[%clk 00:19:07]} {[%emt 00:01:16]} 30. Ra1 {[%clk 00:06:05]} {[%emt
00:01:54]} Bc4 {[%clk 00:11:46]} {[%emt 00:07:56]} 31. Rxa6 {[%clk 00:05:04]}
{[%emt 00:01:32]} Rd8 {[%clk 00:12:06]} {[%emt 00:00:10]} 32. b3 {[%clk
00:04:28]} {[%emt 00:01:06]} Rxd4 {[%clk 00:09:32]} {[%emt 00:03:03]} 33. bxc4
{[%clk 00:04:56]} {[%emt 00:00:02]} Rxc4 {[%clk 00:08:55]} {[%emt 00:01:07]} 34.
gxf4 {[%clk 00:04:16]} {[%emt 00:01:10]} gxf4 {[%clk 00:09:06]} {[%emt
00:00:19]} 35. Kf1 {[%clk 00:04:18]} {[%emt 00:00:28]} Rxb4 {[%clk 00:09:13]}
{[%emt 00:00:23]} 36. Rh6 {[%clk 00:03:29]} {[%emt 00:01:19]} Kg7 {[%clk
00:06:27]} {[%emt 00:03:16]} 37. Re6 {[%clk 00:03:45]} {[%emt 00:00:14]} Kf7
{[%clk 00:05:54]} {[%emt 00:01:03]} 38. Rh6 {[%clk 00:04:13]} {[%emt 00:00:02]}
Kg7 {[%clk 00:06:13]} {[%emt 00:00:12]} 39. Re6 {[%clk 00:04:36]} {[%emt
00:00:06]} f3 {[%clk 00:04:30]} {[%emt 00:02:13]} 40. Ke1 {[%clk 00:03:43]}
{[%emt 00:01:23]} Rd4 {[%clk 00:04:11]} {[%emt 00:00:49]} 41. Rb6 {[%clk
00:03:15]} {[%emt 00:00:58]} b4 {[%clk 00:04:21]} {[%emt 00:00:21]} 42. h3
{[%clk 00:03:03]} {[%emt 00:00:42]} h5 {[%clk 00:03:58]} {[%emt 00:00:52]} 43.
h4 {[%clk 00:03:12]} {[%emt 00:00:21]} Kf7 {[%clk 00:03:29]} {[%emt 00:00:58]}
44. Rh6 {[%clk 00:03:06]} {[%emt 00:00:37]} b3 {[%clk 00:03:48]} {[%emt
00:00:11]} 45. Rb6 {[%clk 00:03:00]} {[%emt 00:00:36]} Rd3 {[%clk 00:03:50]}
{[%emt 00:00:28]} 46. Rb4 {[%clk 00:02:42]} {[%emt 00:00:48]} Ke6 {[%clk
00:01:21]} {[%emt 00:03:00]} 47. Rb5 {[%clk 00:01:52]} {[%emt 00:01:20]} Kd6
{[%clk 00:01:10]} {[%emt 00:00:40]} 48. Rxh5 {[%clk 00:01:44]} {[%emt
00:00:39]} Kc6 {[%clk 00:01:05]} {[%emt 00:00:35]} 49. Rh8 {[%clk 00:01:48]}
{[%emt 00:00:24]} Kc5 {[%clk 00:00:50]} {[%emt 00:00:46]} 50. h5 {[%clk
00:00:31]} {[%emt 00:01:48]} Rd6 {[%clk 00:00:31]} {[%emt 00:00:48]} 51. Rb8
{[%clk 00:23:44]} {[%emt 00:07:17]} Kc4 {[%clk 00:30:15]} {[%emt 00:00:46]} 52.
Rc8+ {[%clk 00:22:04]} {[%emt 00:02:10]} Kb4 {[%clk 00:30:34]} {[%emt
00:00:11]} 53. h6 {[%clk 00:21:31]} {[%emt 00:01:03]} Rxh6 {[%clk 00:30:43]}
{[%emt 00:00:21]} 54. Kd2 {[%clk 00:21:53]} {[%emt 00:00:07]} Ka3 {[%clk
00:30:28]} {[%emt 00:00:46]} 55. Ra8+ {[%clk 00:20:47]} {[%emt 00:01:35]} Kb2
{[%clk 00:30:48]} {[%emt 00:00:11]} 56. Ke3 {[%clk 00:21:14]} {[%emt 00:00:02]}
Re6 {[%clk 00:30:24]} {[%emt 00:00:55]} 57. Kd2 {[%clk 00:21:25]} {[%emt
00:00:19]} Kb1 {[%clk 00:29:16]} {[%emt 00:01:35]} 58. Rb8 {[%clk 00:21:33]}
{[%emt 00:00:25]} b2 {[%clk 00:29:22]} {[%emt 00:00:24]} 59. Kc3 {[%clk
00:21:52]} {[%emt 00:00:11]} Rc6+ {[%clk 00:29:45]} {[%emt 00:00:07]} 60. Kd2
{[%clk 00:22:07]} {[%emt 00:00:14]} Rc2+ {[%clk 00:29:40]} {[%emt 00:00:36]} 61.
Ke1 {[%clk 00:22:21]} {[%emt 00:00:12]} Kc1 {[%clk 00:28:56]} {[%emt 00:01:18]}
{This game had time control 65 minutes for 40 moves + 30 minutes for the rest
of the game + 30 seconds per move from move one, due to weather conditions
prevented players to arrive on time to the playing venue.} 0-1

[Event "The Schackveckan 2023: Chessweek Elo-tournaments Group 2"]
[Site "Göteborgs schackcentrum, Vegagatan 20, Gothenburg, Sweden"]
[Date "2023.08.09"]
[Round "5.4"]
[White "Pintaric, Felix"]
[Black "Brattgjerd, August Minh"]
[Result "1-0"]
[TimeControl "90 minutes for 40 moves + 30 minutes for the rest of the game + 30 seconds per move from move one."]
[WhiteFideId "1776096"]
[BlackFideId "1550446"]
[WhiteElo "1483"]
[BlackElo "1495"]

1. e4 {[%clk 01:30:56]} {[%emt 00:00:03]} e6 {[%clk 01:30:54]} {[%emt
00:00:06]} 2. d4 {[%clk 01:31:21]} {[%emt 00:00:05]} d5 {[%clk 01:31:19]}
{[%emt 00:00:05]} 3. Nd2 {[%clk 01:31:41]} {[%emt 00:00:10]} Nf6 {[%clk
01:31:00]} {[%emt 00:00:49]} 4. e5 {[%clk 01:32:03]} {[%emt 00:00:09]} Nfd7
{[%clk 01:31:25]} {[%emt 00:00:05]} 5. Bd3 {[%clk 01:32:23]} {[%emt 00:00:10]}
c5 {[%clk 01:31:25]} {[%emt 00:00:30]} 6. c3 {[%clk 01:32:41]} {[%emt
00:00:12]} Nc6 {[%clk 01:31:42]} {[%emt 00:00:13]} 7. Ngf3 {[%clk 01:33:00]}
{[%emt 00:00:11]} Qb6 {[%clk 01:31:41]} {[%emt 00:00:31]} 8. O-O {[%clk
01:33:21]} {[%emt 00:00:09]} cxd4 {[%clk 01:31:14]} {[%emt 00:00:57]} 9. cxd4
{[%clk 01:33:41]} {[%emt 00:00:10]} Nxd4 {[%clk 01:30:52]} {[%emt 00:00:51]} 10.
Nxd4 {[%clk 01:31:28]} {[%emt 00:02:44]} Qxd4 {[%clk 01:30:35]} {[%emt
00:00:46]} 11. Nf3 {[%clk 01:31:51]} {[%emt 00:00:07]} Qb6 {[%clk 01:29:57]}
{[%emt 00:01:05]} 12. Qa4 {[%clk 01:30:39]} {[%emt 00:01:45]} Be7 {[%clk
01:28:27]} {[%emt 00:01:59]} 13. Qg4 {[%clk 01:31:00]} {[%emt 00:00:10]} g6
{[%clk 01:23:32]} {[%emt 00:05:26]} 14. h4 {[%clk 01:25:21]} {[%emt 00:06:09]}
Nc5 {[%clk 01:19:08]} {[%emt 00:04:53]} 15. Be3 {[%clk 01:24:27]} {[%emt
00:01:25]} Qxb2 {[%clk 01:18:53]} {[%emt 00:00:46]} 16. Rab1 {[%clk 01:23:14]}
{[%emt 00:01:42]} h5 {[%clk 01:14:01]} {[%emt 00:05:21]} 17. Qg3 {[%clk
01:20:14]} {[%emt 00:03:30]} Qa3 {[%clk 01:14:13]} {[%emt 00:00:17]} 18. Bb5+
{[%clk 01:15:18]} {[%emt 00:05:28]} Nd7 {[%clk 01:07:35]} {[%emt 00:07:07]} 19.
Nd4 {[%clk 01:09:56]} {[%emt 00:05:53]} O-O {[%clk 01:03:29]} {[%emt 00:04:35]}
20. Nxe6 {[%clk 01:07:17]} {[%emt 00:03:09]} Bxh4 {[%clk 00:58:10]} {[%emt
00:05:50]} 21. Qxh4 {[%clk 01:06:41]} {[%emt 00:01:06]} fxe6 {[%clk 00:57:55]}
{[%emt 00:00:45]} 22. Qg5 {[%clk 01:05:46]} {[%emt 00:01:25]} Rf5 {[%clk
00:48:37]} {[%emt 00:09:48]} 23. Qxg6+ {[%clk 01:04:28]} {[%emt 00:01:48]} Kh8
{[%clk 00:47:19]} {[%emt 00:01:47]} 24. Qh6+ {[%clk 01:03:01]} {[%emt
00:01:58]} Kg8 {[%clk 00:47:24]} {[%emt 00:00:25]} 25. Qxe6+ {[%clk 01:00:36]}
{[%emt 00:02:54]} Rf7 {[%clk 00:47:28]} {[%emt 00:00:26]} 26. Qxd5 {[%clk
00:57:44]} {[%emt 00:03:21]} Nb6 {[%clk 00:45:25]} {[%emt 00:02:34]} 27. Bxb6
{[%clk 00:58:05]} {[%emt 00:00:09]} axb6 {[%clk 00:45:54]} {[%emt 00:00:02]} 28.
Bc4 {[%clk 00:58:08]} {[%emt 00:00:27]} Qf8 {[%clk 00:45:17]} {[%emt 00:01:07]}
29. Rxb6 {[%clk 00:58:23]} {[%emt 00:00:15]} Kg7 {[%clk 00:43:45]} {[%emt
00:02:02]} 30. Qxf7+ {[%clk 00:58:40]} {[%emt 00:00:12]} Qxf7 {[%clk 00:43:49]}
{[%emt 00:00:27]} 31. Bxf7 {[%clk 00:59:04]} {[%emt 00:00:06]} Kxf7 {[%clk
00:44:18]} {[%emt 00:00:01]} 32. Ra1 {[%clk 00:58:52]} {[%emt 00:00:42]} Ra5
{[%clk 00:44:18]} {[%emt 00:00:30]} 33. f4 {[%clk 00:59:13]} {[%emt 00:00:08]}
h4 {[%clk 00:43:40]} {[%emt 00:01:08]} 34. Rf6+ {[%clk 00:59:31]} {[%emt
00:00:12]} Ke7 {[%clk 00:43:35]} {[%emt 00:00:35]} 35. Rc1 {[%clk 00:59:55]}
{[%emt 00:00:06]} Bd7 {[%clk 00:42:29]} {[%emt 00:01:37]} 36. Rc7 {[%clk
01:00:10]} {[%emt 00:00:15]} Rxa2 {[%clk 00:42:55]} {[%emt 00:00:04]} 37. Rfc6
{[%emt 00:00:42]} 1-0

[Event "The Schackveckan 2023: Chessweek Elo-tournaments Group 2"]
[Site "Göteborgs schackcentrum, Vegagatan 20, Gothenburg, Sweden"]
[Date "2023.08.09"]
[Round "5.5"]
[White "Andreasson, Emanuel"]
[Black "Madevan Vaishnavi, Yaashvan"]
[Result "0-1"]
[TimeControl "90 minutes for 40 moves + 30 minutes for the rest of the game + 30 seconds per move from move one."]
[WhiteFideId "1759620"]
[BlackFideId "1772180"]
[WhiteElo "1367"]
[BlackElo "1425"]

1. e4 {[%clk 01:30:57]} {[%emt 00:00:02]} d6 {[%clk 01:30:54]} {[%emt
00:00:07]} 2. d4 {[%clk 01:31:23]} {[%emt 00:00:03]} Nf6 {[%clk 01:31:17]}
{[%emt 00:00:08]} 3. Nc3 {[%clk 01:31:45]} {[%emt 00:00:07]} g6 {[%clk
01:31:42]} {[%emt 00:00:06]} 4. Be3 {[%clk 01:32:11]} {[%emt 00:00:03]} Ng4
{[%clk 01:31:18]} {[%emt 00:00:54]} 5. Qd2 {[%clk 01:30:36]} {[%emt 00:02:06]}
Nxe3 {[%clk 01:31:14]} {[%emt 00:00:34]} 6. Qxe3 {[%clk 01:31:01]} {[%emt
00:00:05]} Bg7 {[%clk 01:31:25]} {[%emt 00:00:19]} 7. O-O-O {[%clk 01:27:24]}
{[%emt 00:04:06]} c6 {[%clk 01:30:31]} {[%emt 00:01:25]} 8. h4 {[%clk
01:25:28]} {[%emt 00:02:26]} h5 {[%clk 01:30:39]} {[%emt 00:00:22]} 9. Kb1
{[%clk 01:24:46]} {[%emt 00:01:11]} b5 {[%clk 01:29:32]} {[%emt 00:01:37]} 10.
Bd3 {[%clk 01:14:02]} {[%emt 00:11:14]} Qb6 {[%clk 01:28:09]} {[%emt 00:01:53]}
11. Nce2 {[%clk 01:08:11]} {[%emt 00:06:22]} e5 {[%clk 01:25:44]} {[%emt
00:02:56]} 12. c3 {[%clk 01:01:41]} {[%emt 00:06:59]} b4 {[%clk 01:25:45]}
{[%emt 00:00:29]} 13. d5 {[%clk 00:57:54]} {[%emt 00:04:17]} Qxe3 {[%clk
01:22:42]} {[%emt 00:03:33]} 14. fxe3 {[%clk 00:58:08]} {[%emt 00:00:16]} c5
{[%clk 01:22:15]} {[%emt 00:00:57]} 15. cxb4 {[%clk 00:55:23]} {[%emt
00:03:15]} cxb4 {[%clk 01:22:33]} {[%emt 00:00:12]} 16. Nf3 {[%clk 00:48:53]}
{[%emt 00:07:00]} Bh6 {[%clk 01:21:19]} {[%emt 00:01:43]} 17. Rc1 {[%clk
00:48:03]} {[%emt 00:01:21]} Bg4 {[%clk 01:17:39]} {[%emt 00:04:10]} 18. Nh2
{[%clk 00:44:19]} {[%emt 00:04:14]} Bd7 {[%clk 01:09:00]} {[%emt 00:09:09]} 19.
Bb5 {[%clk 00:36:08]} {[%emt 00:08:41]} Ke7 {[%clk 01:04:49]} {[%emt 00:04:41]}
20. Rc7 {[%clk 00:31:54]} {[%emt 00:04:43]} Bxe3 {[%clk 01:03:32]} {[%emt
00:01:48]} 21. Bc6 {[%clk 00:31:15]} {[%emt 00:01:08]} Bb6 {[%clk 01:03:54]}
{[%emt 00:00:09]} 22. Rb7 {[%clk 00:26:03]} {[%emt 00:05:42]} Bc5 {[%clk
01:01:55]} {[%emt 00:02:28]} 23. Rxd7+ {[%clk 00:24:19]} {[%emt 00:02:15]} Nxd7
{[%clk 01:02:18]} {[%emt 00:00:06]} 24. Bxa8 {[%clk 00:24:40]} {[%emt
00:00:10]} Rxa8 {[%clk 01:02:41]} {[%emt 00:00:07]} 25. Rf1 {[%clk 00:23:22]}
{[%emt 00:01:47]} Nf6 {[%clk 01:00:51]} {[%emt 00:02:21]} 26. Ng3 {[%clk
00:23:38]} {[%emt 00:00:14]} Be3 {[%clk 01:01:02]} {[%emt 00:00:19]} 27. Rf3
{[%clk 00:22:08]} {[%emt 00:02:00]} Bf4 {[%clk 01:01:06]} {[%emt 00:00:26]} 28.
Nhf1 {[%clk 00:22:22]} {[%emt 00:00:16]} Rc8 {[%clk 01:00:58]} {[%emt
00:00:38]} 29. b3 {[%clk 00:21:56]} {[%emt 00:00:56]} Rc1+ {[%clk 01:00:22]}
{[%emt 00:01:06]} 30. Kb2 {[%clk 00:22:20]} {[%emt 00:00:06]} Re1 {[%clk
01:00:40]} {[%emt 00:00:12]} 31. Kc2 {[%clk 00:17:29]} {[%emt 00:05:21]} Nxe4
{[%clk 00:59:52]} {[%emt 00:01:18]} 32. Kd3 {[%clk 00:14:31]} {[%emt 00:03:28]}
Nxg3 {[%clk 00:54:24]} {[%emt 00:05:58]} 33. Nxg3 {[%clk 00:14:54]} {[%emt
00:00:07]} Bxg3 {[%clk 00:54:27]} {[%emt 00:00:27]} 34. Rxg3 {[%clk 00:15:19]}
{[%emt 00:00:04]} Rh1 {[%clk 00:54:47]} {[%emt 00:00:11]} 35. Re3 {[%clk
00:14:08]} {[%emt 00:01:41]} Rxh4 {[%clk 00:53:46]} {[%emt 00:01:30]} 36. Re2
{[%clk 00:14:21]} {[%emt 00:00:18]} Rd4+ {[%clk 00:53:38]} {[%emt 00:00:38]} 37.
Ke3 {[%clk 00:14:39]} {[%emt 00:00:12]} Rxd5 {[%clk 00:53:45]} {[%emt
00:00:23]} 38. Rc2 {[%clk 00:14:59]} {[%emt 00:00:10]} Rc5 {[%clk 00:53:31]}
{[%emt 00:00:44]} 39. Rd2 {[%clk 00:15:13]} {[%emt 00:00:16]} Ke6 {[%clk
00:53:07]} {[%emt 00:00:54]} 40. Rf2 {[%clk 00:15:30]} {[%emt 00:00:12]} Rc3+
{[%clk 00:53:04]} {[%emt 00:00:33]} 0-1